Cogmind - Beta 16 @@@ ROGUE MODE // 2025.10.27 @ 13:32:31 Player: Ae Result: Destroyed by G-47 Trooper with Particle Gun Performance ------------- Evolutions (0) 0 Regions Visited (1) 200 Robots Destroyed (15) 75 Value Destroyed (199) 199 Prototype IDs (0) 0 Alien Tech Used (0) 0 Bonus (0) 0 TOTAL SCORE: 474 Bonus ------- None Cogmind --------- Core Integrity 0/250 Matter 300/300 Energy 76/100 System Corruption 0% Temperature Cool (9) Movement Core (150) Ox2 Location -10/Materials Parts ------- > --- POWER (1) -------- (None) > --- PROPULSION (2) --- (None) > --- UTILITY (2) ------ Improved Heat Sink Small Storage Unit > --- WEAPON (2) ------- Small Laser Small Laser > --- INVENTORY (8) ---- Ion Engine Wheel Machine Analyzer Improved Terrain Scanner Recalibrator Peak State ------------ > --- POWER ------------ Light Ion Engine > --- PROPULSION ------- Compact Wheel Compact Wheel > --- UTILITY ---------- Small Storage Unit Seismic Detector > --- WEAPON ----------- Small Laser Light Assault Rifle > --- INVENTORY -------- Ion Engine Light Treads Light Treads Machine Analyzer Improved Terrain Scanner Assault Rifle [Rating: 8] Favorites ----------- Power Light Ion Engine Engine Light Ion Engine Propulsion Compact Wheel Treads Light Treads Wheel Compact Wheel Utility Small Storage Unit Device Seismic Detector Storage Small Storage Unit Weapon Light Assault Rifle Energy Gun Small Laser Ballistic Gun Light Assault Rifle Build | -11 -10 ------- Run | Yrd Mat Slots Evolved . | . . Power . | . . Propulsion . | . . Utility . | . . Weapon . | . . Parts Attached 12 | 7 5 Power 1 | 1 . Engine 1 | 1 . Core . | . . Reactor . | . . Propulsion 4 | 2 2 Treads 2 | . 2 Leg . | . . Wheel 2 | 2 . Hover . | . . Flight . | . . Utility 3 | 2 1 Device 2 | 1 1 Storage 1 | 1 . Processor . | . . Hackware . | . . Protection . | . . Artifact . | . . Weapon 4 | 2 2 Energy Gun 2 | . 2 Energy Cannon . | . . Ballistic Gun 2 | 2 . Ballistic Cannon . | . . Launcher . | . . Special Weapon . | . . Impact Weapon . | . . Slashing Weapon . | . . Piercing Weapon . | . . Special Melee Weapon . | . . Unidentified Prototypes . | . . Parts Lost 8 | . 8 Power 1 | . 1 Propulsion 4 | . 4 Utility 1 | . 1 Weapon 2 | . 2 Highest Loss Streak 7 | . 7 To Critical Strikes 1 | . 1 Average Backups 5 | 3 6 Power . | . 1 Propulsion 1 | 1 2 Utility 2 | . 2 Weapon . | . . Tool/Special . | . . Unused Backups 5 | . 5 Power 1 | . 1 Propulsion 1 | . 1 Utility 3 | . 3 Weapon . | . . Tool/Special . | . . Average Slot Usage (%) 86 | . 86 Engine 8 | . 8 Treads 7 | . 7 Wheel 16 | . 16 Device 12 | . 12 Storage 14 | . 14 Energy Gun 11 | . 11 Ballistic Gun 15 | . 15 Peak Build Rating 8 | 7 8 Average Rating 6 | 5 7 On Entrance 3 | . 7 Avg Prop Armor Cover (%) . | . . Naked Turns . | . . Heaviest Build 12 | 12 12 Greatest Support 40 | 32 40 Greatest Overweight (x) . | . . Average Overweight (x) . | . . Largest Inventory Capacity 8 | 8 8 Average Capacity 7 | 7 8 Most Carried 8 | 5 8 Average Carried 5 | 3 6 Final Capacity 8 | 8 8 Final Carried 5 | 5 5 Class Distribution -------------------- 100% | Mutant Dominant Class ---------------- Mutant | -10/Materials Resources | -11 -10 ----------- Run | Yrd Mat Matter Collected 410 | 310 100 Remotely . | . . Salvage Created 551 | 117 434 Parts 33 | 14 19 Haulers Intercepted . | . . Recyclers Shooed 4 | . 4 Parts Field Recycled . | . . Retrieved Matter . | . . Parts Self-Destructed . | . . Prevented . | . . Parts Restored . | . . Kills | -11 -10 ------- Run | Yrd Mat Combat Hostiles Destroyed 6 | . 6 Guns 6 | . 6 Classes Destroyed 6 | 2 4 Worker 2 | . 2 Tunneler 3 | 3 . Recycler 3 | 1 2 Mechanic 1 | . 1 Swarmer 3 | . 3 Grunt 3 | . 3 Best Kill Streak 3 | 3 3 Combat Bots Only 3 | . 3 Max Kills in Single Turn 2 | 1 2 Gunslinging . | . . Exploded . | . . Melee . | . . Uniques/NPCs Destroyed . | . . Combat | -11 -10 -------- Run | Yrd Mat Hostile Shots Fired 120 | . 120 Missed 27 | . 27 Hits 93 | . 93 Projectile 93 | . 93 Critical Strikes 3 | . 3 Damage Taken 1016 | . 1016 Core 257 | . 257 Absorbed by Shields . | . . Core Remaining (%) 100 | 100 . Volleys Fired 68 | 11 57 Largest 2 | 2 2 Hottest 80 | 40 80 Shots Fired 119 | 22 97 Gun 119 | 22 97 Cannon . | . . Launcher . | . . Special . | . . Kinetic 61 | 22 39 Thermal 58 | . 58 Explosive . | . . Electromagnetic . | . . Robot Hit Streak 16 | 3 16 Robot Miss Streak 5 | 2 5 Penetration Max . | . . Secondary Targets 2 | . 2 Max Gunslinging Chain 1 | . 1 Shots Hit Robots 73 | 12 61 Core Hits 27 | 6 21 Critical Kills . | . . Critical Parts Destroyed . | . . Critical Strikes . | . . Melee Attacks . | . . Impact . | . . Slashing . | . . Piercing . | . . Sneak Attacks . | . . Combat Hostiles . | . . Follow-up Attacks . | . . Damage Inflicted 740 | 120 620 Guns 740 | 120 620 Cannons . | . . Explosions . | . . Melee . | . . Ramming . | . . Kinetic 312 | 120 192 Thermal 428 | . 428 Explosive . | . . Electromagnetic . | . . Impact . | . . Slashing . | . . Piercing . | . . Highest Corruption . | . . Average Corruption . | . . Corruption Purged . | . . Corruption Blocked . | . . Overload Shots . | . . Overflow Damage . | . . Projectiles . | . . Explosions . | . . Melee . | . . Knockbacks . | . . Impact . | . . Kinetic . | . . Secondary . | . . Self-Inflicted Damage . | . . Shots . | . . Rammed . | . . Targets Rammed . | . . Kicked . | . . Crushed . | . . Highest Temperature 104 | . 104 Average Temperature 33 | . 33 Received Heat Transfer 447 | . 447 Siege Activations . | . . Martial Activations . | . . Shielding Activations . | . . Robots Disrupted . | . . Combat Hostiles . | . . Robots Corrupted . | . . Combat Hostiles . | . . Parts Fried . | . . Impact Corruptions . | . . Robots Melted . | . . Combat Hostiles . | . . Parts Melted . | . . Heat Transferred 975 | . 975 Parts Sabotaged . | . . Parts Stolen . | . . Parts Stripped . | . . Power Chain Reactions . | . . Alert | -11 -10 ------- Run | Yrd Mat Maximum Alert Level . | . . Low Security (%) 100 | 100 100 Level 1 . | . . Level 2 . | . . Level 3 . | . . Level 4 . | . . Level 5 . | . . High Security . | . . Max Security . | . . Peak Influence 70 | 10 70 Initial 3 | . 3 Average 17 | 1 22 Influence Increases 230 | 20 210 Destroy 0b10 Robot/C 120 | . 120 Destroy 0b10 Robot/NC 45 | 20 25 Destroy Leader 20 | . 20 Select Force Hacks 30 | . 30 Lose Combat Pursuer 15 | . 15 Influence Decreases 205 | 15 190 Entered New Map 2 | . 2 Time Decay 123 | 15 108 Lost Part 80 | . 80 Squads Dispatched 1 | . 1 Investigation 1 | . 1 Extermination . | . . Reinforcement . | . . Assault . | . . Garrison . | . . Intercept . | . . Searches Triggered . | . . Construction Impeded . | . . Haulers Reinforced . | . . Active Scanning Responses . | . . Cargo Convoy Interrupts . | . . Stealth | -11 -10 --------- Run | Yrd Mat Distress Signals 1 | . 1 Communications Jammed . | . . Distress Signals . | . . Times Spotted 14 | . 14 Peak Tracking Total 6 | . 6 Tactical Retreats 1 | . 1 Traps | -11 -10 ------- Run | Yrd Mat Traps Triggered . | . . Indirectly . | . . Trap Hack Attempts . | . . Triggered . | . . Disarmed . | . . Reprogrammed . | . . Reused . | . . Traps Extracted . | . . Installed . | . . Triggered . | . . Machines | -11 -10 ---------- Run | Yrd Mat Machines Disabled . | . . Max in Single Turn . | . . Machines Repaired . | . . Machines Dismantled . | . . Machines Sabotaged . | . . Overloaded Fab Kills . | . . Hacking | -11 -10 --------- Run | Yrd Mat Machines Accessed 2 | . 2 Terminals 1 | . 1 Fabricators . | . . Repair Stations . | . . Recycling Units 1 | . 1 Scanalyzers . | . . Garrison Access . | . . Total Hacks 4 | . 4 Successful 2 | . 2 Failed 2 | . 2 Catastrophic . | . . Database Lockouts . | . . Manual 4 | . 4 Terminals 2 | . 2 Fabricators . | . . Repair Stations . | . . Recycling Units 2 | . 2 Scanalyzers . | . . Garrison Access . | . . Terminal Hacks . | . . Fabricator Hacks . | . . Repair Station Hacks . | . . Recycling Unit Hacks . | . . Scanalyzer . | . . Garrison Access Hacks . | . . Unauthorized Hacks 2 | . 2 Terminals 1 | . 1 Skim 1 | . 1 Fabricators . | . . Repair Stations . | . . Recycling Units 1 | . 1 Tunnel 1 | . 1 Scanalyzers . | . . Garrison Access . | . . Data Cores Recovered . | . . Used . | . . Hacking Detections 1 | . 1 Full Trace Events . | . . Feedback Events . | . . Feedback Blocked . | . . Robot Schematics Acquired . | . . Robots Built . | . . Authchips . | . . Time . | . . Total Robot Build Rating . | . . Part Schematics Acquired . | . . Parts Built . | . . Authchips . | . . Time . | . . Total Part Build Rating . | . . Part Studies Acquired . | . . Parts Repaired . | . . Time . | . . Parts Recycled . | . . Recycled Matter . | . . Retrieved Matter . | . . Retrieved Components . | . . Parts Scanalyzed . | . . Part Schematics Acquired . | . . Parts Damaged . | . . Bothacking | -11 -10 ------------ Run | Yrd Mat Used RIF Installer . | . . Robots Hacked . | . . Non-combat . | . . Combat . | . . Robot Hacks Applied . | . . Relay Couplers Released . | . . Fabnet Peak Effective % . | . . Robots Rewired . | . . Allies Hacked . | . . Hacks Repelled . | . . Allies | -11 -10 -------- Run | Yrd Mat Total Allies . | . . Largest Group . | . . Highest-Rated Group . | . . Highest-Rated Ally . | . . Total Orders . | . . Ally Attacks . | . . Total Damage . | . . Kills . | . . Allies Corrupted . | . . Allies Melted . | . . Intel | -11 -10 ------- Run | Yrd Mat Active Infowar (turns) 241 | 11 230 Seismic 241 | 11 230 Robot Analysis Total . | . . Derelict Logs Recovered . | . . Drone Launches . | . . Drone Recoveries . | . . Exploration | -11 -10 ------------- Run | Yrd Mat Turns Passed 466 | 118 348 Spaces Moved 243 | 73 170 Core 1 | 1 . Treads 28 | . 28 Legs . | . . Wheels 214 | 72 142 Hover . | . . Flight . | . . Fastest Speed 50 | 50 100 Average Speed 106 | 99 109 Slowest Speed 160 | 100 160 Overloaded Moves . | . . Propulsion Burnouts . | . . Robots Hopped . | . . Potential Cave-ins . | . . Cave-ins Triggered . | . . Exploration Rate (%) 21 | 4 39 Regions Visited 1 Branch Regions . Pre-discovered Areas 1 | . 1 Known Exits Taken . | . . Unknown Exits Taken 1 | 1 . Scrap Searched . | . . Spaces Dug . | . . Terrain Destroyed . | . . Melee . | . . Projectile . | . . AOE . | . . Terrain Rammed . | . . Walls Destroyed . | . . Machines Disabled . | . . Actions | -11 -10 --------- Run | Yrd Mat Total 336 | 95 241 Wait 2 | . 2 Move 242 | 72 170 Hop . | . . Pick Up 8 | 5 3 Fast Attach 9 | 7 2 Attach 4 | . 4 Detach 1 | . 1 Swap 2 | . 2 Drop . | . . Fire 68 | 11 57 Melee . | . . Ram . | . . Kick . | . . Crush . | . . Escape Stasis . | . . Rewire . | . . Trap . | . . Miscellaneous . | . . Route ------- -11/Scrapyard -10/Materials (discovered 2 exits: [*Mat] / [*Min]) History --------- Turn | Location | Event 27 | -11/Scrapyard | Discovered new exit (range 15) 119 | -11/Scrapyard | Entered Materials 247 | -10/Materials | Discovered new exit (range 16) 325 | -10/Materials | Core integrity fell below 50% 341 | -10/Materials | Core integrity fell below 20% 344 | -10/Materials | Build established: Mutant 390 | -10/Materials | Lost 7 parts (1p3n1u2w) 449 | -10/Materials | Discovered new exit (range 15) 467 | -10/Materials | Destroyed by G-47 Trooper with Particle Gun Last Messages --------------- 00364_ G-47 Trooper destroyed. 00364_ Switching to secondary target: G-34 Mercenary. 00365_ R-06 Scavenger collects Aluminum Leg. 00366_ K-01 Serf collects debris. 00368_ R-06 Scavenger collects Particle Gun. 00369_ K-01 Serf collects debris. 00370_ K-01 Serf destroyed. 00370_ G-34 Mercenary destroyed. 00371_ R-06 Scavenger collects Wheel. 00373_ Acquired 36 matter. 00375_ R-06 Scavenger collects Aluminum Leg. 00377_ Acquired Imp. Heat Sink. 00378_ Acquired 27 matter. 00381_ Acquired 7 matter. 00411_ K-01 Serf destroyed. 00423_ R-06 Scavenger destroyed. 00442_ R-06 Scavenger collects Tractor Beam. 00449_ EXIT=FOUND 00460_ W-16 Scout sends out distress signal. 00464_ Lgt. Treads destroyed. Map ----- +----------------------------------------------------+ | ??????????????######### # "Y" #???????????????? | | ??????????????# # # #???????????????? | | ??????????????# "T" + / #???????????????? | | ??????????????# # # ! ! #???????????????? | | ??????????????######### ########???????????????? | | ???????????????????#"""% #?????????????????????? | | ???????????????????# #?????????????????????? | | ???????????????????#"![ #?????????????????????? | | ???????????????????#""% < #?????????????????????? | | ???????????????????#"! %% #?????????????????????? | | ???????????????????#" #?????????????????????? | | ???????????????????#"""%% #?????????????????????? | | ???????????????????#### ##?????????????????????? | | ????????????##+######## ########## #?????????? | | ????????????# #?????????? | | ??????####### #?????????? | | ????? #?????????? | | ????? = """ """ """ #?????????? | | ????? % % """ """ """?????????????? | | ????? !% """ """ """?????????????? | | ?????? ############## ???????????? | | ????????????????????# r ???????????? | | ????????????????????# """ """ ""??????????????? | | ????????????????????# """ """ "???????????????? | | ????????????????????# """ """ """?????????????? | | ????????????????????# g @ #?????????? | | ????????????????????# g #?????????? | | ????????????????????# """ #?????????? | | ????????????????????# "T" !! """?????????????? | | ????????????????????# """ ! """?????????????? | | ????????????????????# g ?????????????? | | ????????????????????# g ????????????? | | ????????????????????# ######+???????????? | | ????????????????????# #?????????????????? | | ????????????????????# #?????????????????? | | ????????????????????# ########?????????????????? | | ????????????????????# < ?????????????????????????? | | ????????????????????# ?????????????????????????? | | ????????????????????####?????????????????????????? | | ?????????????????????????????????????????????????? | | ?????????????????????????????????????????????????? | | ?????????????????????????????????????????????????? | | ?????????????????????????????????????????????????? | | ?????????????????????????????????????????????????? | | ?????????????????????????????????????????????????? | | ?????????????????????????????????????????????????? | | | | | | | | | +----------------------------------------------------+ Best States ------------- Heat Dissipation 39 Energy Generation 10 Energy Capacity 125 Matter Stores 300 Matter Capacity 300 Sight Range 16 Terrain Scan Density 10 Evasion (%) 40 Recoil Reduction 2 Item Schematics ----------------- None Robot Schematics ------------------ None Fabricated ------------ Nothing Repaired ---------- Nothing Studied --------- None Alien Tech Used ----------------- None Achievements -------------- None Challenges ------------ None Game ------ Seed CoolingLongswordGun Manual? 0 Play Time 00:07:24 Cumulative 107.2 hours Start 2025.10.27 @ 13:28:29 End 2025.10.27 @ 13:32:31 Sessions 1 Manual Loads 0 Difficulty Rogue Special Mode None Game No. 178 Rogue 150 Adventurer 28 Explorer 0 Win Type - Total 0 Types 0/0/0/0/0/0/0/0/0/0 Lore% 44 Gallery% 32 Achievement% 24 Wizard Run 0 Options --------- Layout 0 ASCII 0 Keyboard 1 Movement Numpad Keybinds 0 Fullscreen 2 Font 28/SmallcapsGlow Map View 84x54 Zoom Use 0% Tactical HUD 1 Map Filters NONE Filters NONE Steam 1 RUN: c68a3af9-a11c-49a6-b5fd-2af0cc71b1e2